[Event "5th Baskent University Open 2022"]
[Site "Ankara"]
[Date "2022.07.03"]
[Round "2.1"]
[White "Ozer, Omer Faruk"]
[Black "Annaberdiev, Meilis"]
[Result "1/2-1/2"]
[ECO "B01"]
[WhiteElo "2317"]
[BlackElo "2484"]
[Annotator "TA"]
[PlyCount "80"]
[EventDate "2022.07.02"]
[EventType "swiss"]
[EventCountry "TUR"]
[SourceTitle "playchess.com"]
[Source "ChessBase"]
[SourceQuality "1"]
[TimeControl "5400+30"]

{[%evp 18,80,64,0,58,49,45,47,47,33,28,25,35,-36,-37,-37,-42,-41,-35,-36,-25,-25,-25,-25,-25,-19,-15,-20,-10,-38,-29,-32,-28,-26,-19,-39,-5,-7,0,-41,-41,-37,-33,-33,-34,-45,-38,-32,0,0,0,0,0,0,0,0,0,0,0,0,0,0,0,-5,8]} 1. e4 {[%emt 0:01:00]} d5 {[%emt 0:01:00]} 2. exd5 {[%emt 0:00:30]} Qxd5 {[%emt 0:00:00]} 3. Nc3 {[%emt 0:00:30]} Qa5 {[%emt 0:00:00]} 4. d4 {[%emt 0:02:30]} Nf6 {[%emt 0:00:00]} 5. Bd2 {[%emt 0:05:30]} c6 {[%emt 0:06:00]} 6. Bc4 {[%emt 0:05:30]} Bf5 {[%emt 0:08:30]} 7. Nf3 {[%emt 0:19:30]} e6 {[%emt 0:00:30]} 8. Nd5 {[%emt 0:00:30]} Qd8 {[%emt 0:00:30]} 9. Nxf6+ {[%emt 0:00:30]} gxf6 {[%emt 0:00:00]} 10. Qe2 {[%emt 0:01:30]} (10. O-O $14) 10... Be7 {[%emt 0:12:00] B01: Scandinavian Defence.} (10... Bxc2 $11 11. O-O Be7) 11. Bb3 {[%emt 0:18:30]} a5 {[%emt 0:01:30]} 12. a4 {[%emt 0:00:30] [#]} Na6 $146 {[%emt 0:00:30] White is slightly better.} ({Predecessor:} 12... Bg4 13. Be3 Na6 14. h3 Bh5 15. g4 Bg6 16. Nh4 Be4 17. f3 Bg6 18. Ng2 Bd6 {1-0 (57) Marinkovic,I (2485)-Maus,S (2385) Germany 1992}) 13. Rd1 {[%emt 0:13:30]} Rg8 {[%emt 0:07:30]} 14. h3 $1 {[%emt 0:01:30]} Nb4 {[%emt 0:11:30]} (14... Rxg2 $2 15. Nh4 Rg6 16. Nxf5 (16. Nxg6 hxg6 17. Be3 Qd6 $14) 16... exf5 17. Qc4 $18) 15. Bxb4 {[%emt 0:01:30]} (15. Bc1 $14) 15... axb4 $15 {[%emt 0:01:30]} 16. Nh4 {[%emt 0:05:42][%cal Od4d5] [#] And now d5! would win.} Bg6 {[%emt 0:00:30]} 17. g3 {[%emt 0:00:42]} Qa5 {[%emt 0:07:30]} 18. Kf1 {[%emt 0:07:00]} Qa6 {[%emt 0:06:30]} 19. Nxg6 {[%emt 0:01:16]} Qxe2+ {[%emt 0:00:30]} 20. Kxe2 {[%emt 0:00:04]} hxg6 {[%emt 0:00:30]} 21. h4 {[%emt 0:00:30]} Rh8 {[%emt 0:00:00]} 22. g4 {[%emt 0:02:08]} Ra5 {[%emt 0:02:00]} 23. f3 {[%emt 0:00:30]} Kf8 {[%emt 0:00:30]} 24. c4 {[%emt 0:01:36]} bxc3 {[%emt 0:08:30]} 25. bxc3 {[%emt 0:00:02]} Kg7 {[%emt 0:01:30]} 26. Bc2 {[%emt 0:02:30]} b5 {[%emt 0:01:30]} 27. axb5 {[%emt 0:00:30]} cxb5 {[%emt 0:00:00]} 28. Bb3 {[%emt 0:04:59]} Ra3 {[%emt 0:05:15]} 29. Rb1 {[%emt 0:00:08]} Rc8 {[%emt 0:00:32]} 30. Kd3 {[%emt 0:02:01]} Bd8 {[%emt 0:00:49]} 31. Rhc1 {[%emt 0:01:40]} Ba5 {[%emt 0:00:09]} 32. c4 {[%emt 0:00:15]} e5 {[%emt 0:08:38]} 33. d5 {[%emt 0:00:47][%cal Bd4d5,Bd5d6,Bd6d7][%mdl 32] The position is equal.} Bb6 {[%emt 0:03:51]} 34. d6 {[%emt 0:00:43]} Rc6 {[%emt 0:00:50]} 35. c5 {[%emt 0:00:23]} Rxc5 {[%emt 0:02:31]} 36. Rxc5 {[%emt 0:00:30]} Bxc5 {[%emt 0:00:30]} 37. d7 {[%emt 0:00:00]} Be7 {[%emt 0:00:00]} 38. Ke4 {[%emt 0:00:34]} Ra6 {[%emt 0:03:48]} 39. Rd1 {[%emt 0:00:30]} Bd8 {[%emt 0:00:00]} 40. Rd5 {[%emt 0:00:31]} Rb6 {[%emt 0:00:00] Weighted Error Value: White=0.10 (very precise) /Black=0.08 (flawless)} 1/2-1/2

[Event "5th Baskent University Open 2022"]
[Site "Ankara"]
[Date "2022.07.03"]
[Round "2.2"]
[White "Rasulov, Vugar"]
[Black "Huseyinoglu, Alihan"]
[Result "1-0"]
[ECO "A35"]
[WhiteElo "2458"]
[BlackElo "2213"]
[Annotator "TA"]
[PlyCount "71"]
[EventDate "2022.07.02"]
[EventType "swiss"]
[EventCountry "TUR"]
[SourceTitle "playchess.com"]
[Source "ChessBase"]
[SourceQuality "1"]
[TimeControl "5400+30"]

{[%evp 12,71,6,-5,0,-37,-32,-57,-52,-96,-50,-115,-102,-108,-119,-109,-106,-105,-59,-71,-69,-64,-16,-16,-14,-258,-260,-317,-333,-344,-249,-388,-216,-215,-204,-208,-205,-208,-208,-206,-186,-228,-212,-204,-197,-207,-210,-189,-190,-260,-252,-251,-166,-154,-175,-188,0,-66,-67,-55,29997,29998]} 1. Nf3 {[%emt 0:01:00]} c5 {[%emt 0:02:00]} 2. c4 {[%emt 0:00:00]} Nc6 {[%emt 0:00:30]} 3. Nc3 {[%emt 0:00:00]} Nf6 {[%emt 0:02:30]} 4. e3 {[%emt 0:01:30]} g6 {[%emt 0:04:30]} 5. d4 {[%emt 0:00:30]} cxd4 {[%emt 0:00:30]} 6. exd4 {[%emt 0:00:00]} d5 {[%emt 0:00:00]} 7. Bg5 {[%emt 0:02:00] Strongly threatening Bxf6.} Be6 {[%emt 0:13:00] A35: Symmetrical English: 2 Nc3 Nc6 3 Nf3.} 8. a3 {[%emt 0:08:30]} Bg7 {[%emt 0:06:30]} (8... dxc4 $2 9. Bxf6 exf6 10. d5 $18) 9. c5 {[%emt 0:12:30]} Ne4 {[%emt 0:05:30] Black is slightly better.} 10. Be3 {[%emt 0:00:30] [#]} O-O {[%emt 0:05:30] [#]} (10... Nxc5 $1 $17 {[%cal Oe8g8]} 11. dxc5 (11. Bb5 Ne4) 11... d4 12. Nxd4 Bxd4) 11. Bd3 $146 {[%emt 0:04:30] [#]} ({White should try} 11. Qc2 $15) ({Predecessor:} 11. Rc1 Nxc5 12. dxc5 d4 13. Nxd4 Nxd4 14. Bd3 Nb3 15. Rc2 Bd4 16. Bxd4 Nxd4 17. Rd2 {0-1 (50) Simon,T (1989)-Sucher,J (2141) Innsbruck 2018}) 11... Nxc5 $1 $17 {[%emt 0:03:30][%mdl 512]} 12. dxc5 {[%emt 0:00:30]} d4 {[%emt 0:00:00]} 13. Nxd4 {[%emt 0:00:00]} Nxd4 {[%emt 0:03:00]} (13... Bxd4 14. O-O $15) 14. O-O {[%emt 0:05:00]} Nb3 {[%emt 0:09:30]} (14... Rc8 $17 15. Qa4 Nb3) 15. Rb1 $15 {[%emt 0:00:00]} Rc8 $36 {[%emt 0:01:30][%mdl 2048] Black fights for an advantage.} 16. Ne4 {[%emt 0:02:00]} f5 {[%emt 0:05:30]} (16... Qd5 $15) 17. Ng5 $11 {[%emt 0:07:30]} Bd5 {[%emt 0:00:00]} 18. Qe2 $2 {[%emt 0:05:30] [#]} (18. Bc2 $1 $11 {and White is okay.} Nxc5 19. b4) 18... f4 $1 $19 {[%emt 0:09:00]} (18... Nxc5 19. Bc4 Ne6 20. Bxd5 Qxd5 21. Rbd1 $15) 19. Rbd1 {[%emt 0:23:30]} fxe3 {[%emt 0:03:30]} 20. Qxe3 {[%emt 0:01:30]} e5 {[%emt 0:04:30]} ({Weaker is} 20... Rxc5 21. Be4 e6 22. Bxd5 exd5 23. Ne6 $11) (20... Bxb2 21. Qh3 Rf7 22. Be4 $18) 21. Qg3 {[%emt 0:07:19]} (21. Bc4 $142 Bxc4 22. Rxd8 Rfxd8 23. Qh3) 21... Rf4 {[%emt 0:09:41]} (21... Nd4 $142 {And now ...e4 would win.} 22. Rfe1 Rf4 23. Nxh7 Rxc5) 22. Be4 {[%emt 0:12:16]} Rxe4 {[%emt 0:00:41]} ({Stronger than} 22... Nd4 23. Rxd4 Rxe4 24. Rxe4 $11) 23. Nxe4 {[%emt 0:00:30]} Nd4 {[%emt 0:00:30]} ({Don't do} 23... Nxc5 24. Nc3 $18) 24. Qd3 {[%emt 0:00:02] Prevents Ne2+.} Qh4 {[%emt 0:07:52]} 25. Rfe1 {[%emt 0:00:14]} Rf8 {[%emt 0:00:37]} 26. b4 {[%emt 0:01:26]} Bxe4 {[%emt 0:01:26]} 27. Qxe4 {[%emt 0:00:30]} Qxf2+ {[%emt 0:00:30]} 28. Kh1 {[%emt 0:00:00]} Qf7 {[%emt 0:00:36]} 29. h3 {[%emt 0:00:06]} a6 {[%emt 0:00:51]} 30. a4 {[%emt 0:01:03]} (30. Rf1 $142 Qxf1+ 31. Rxf1 Rxf1+ 32. Kh2) 30... Qd7 {[%emt 0:00:22]} 31. Rf1 {[%emt 0:01:11]} Rxf1+ {[%emt 0:01:36]} 32. Rxf1 {[%emt 0:00:03][%cal Ob4b5]} Qc6 {[%emt 0:00:08] Inhibits b5.} 33. Qh4 {[%emt 0:01:08] [#] Threatening mate with Qd8+.} Qd7 {[%emt 0:01:07] Against Qd8+} (33... Qd5 $1 $19 {White must now prevent ...Nf5.} 34. Qg4 Bf8) 34. b5 {[%emt 0:00:09]} (34. Qe4 $11) 34... axb5 $15 {[%emt 0:00:59]} 35. axb5 {[%emt 0:00:30][%cal Oc5c6]} Qxb5 $2 {[%emt 0:00:30][%mdl 8192]} (35... Bf8 $15 36. c6 bxc6) 36. Qd8+ {[%emt 0:00:30] Weighted Error Value: White=0.43/Black=0.43} 1-0

[Event "5th Baskent University Open 2022"]
[Site "Ankara"]
[Date "2022.07.03"]
[Round "2.3"]
[White "Altun, Arda"]
[Black "Atabayev, Saparmyrat"]
[Result "1/2-1/2"]
[ECO "B94"]
[WhiteElo "2213"]
[BlackElo "2447"]
[Annotator "TA"]
[PlyCount "73"]
[EventDate "2022.07.02"]
[EventType "swiss"]
[EventCountry "TUR"]
[SourceTitle "playchess.com"]
[Source "ChessBase"]
[SourceQuality "1"]
[TimeControl "5400+30"]

{[%evp 11,73,20,22,21,33,26,62,41,55,52,53,64,72,68,73,53,141,158,152,23,20,-11,-3,-4,-14,-235,-227,-228,-183,-199,-194,-298,-312,-303,-250,-371,179,171,185,162,164,153,175,0,0,0,177,0,0,0,184,179,159,0,172,0,147,0,172,0,0,0,146,0]} 1. e4 {[%emt 0:03:00]} c5 {[%emt 0:01:00]} 2. Nf3 {[%emt 0:00:30][%cal Bg1f3,Bf3d4,Bd4b3][%mdl 32]} d6 {[%emt 0:00:30]} 3. d4 {[%emt 0:00:30]} cxd4 {[%emt 0:00:30]} 4. Nxd4 {[%emt 0:00:30]} Nf6 {[%emt 0:00:00]} 5. Nc3 {[%emt 0:00:00]} a6 {[%emt 0:00:00]} 6. Bg5 {[%emt 0:00:00]} Nbd7 {[%emt 0:00:00]} 7. Qe2 {[%emt 0:00:00] B94: Sicilian Najdorf: 6 Bg5 Nbd7.} Qa5 {[%emt 0:02:00]} 8. Bd2 {[%emt 0:02:00]} Qb6 {[%emt 0:05:30]} 9. Nb3 {[%emt 0:02:30] White is more active. White is slightly better.} Qc7 {[%emt 0:07:30]} 10. g4 {[%emt 0:19:30]} h6 {[%emt 0:04:30]} 11. f4 {[%emt 0:05:30]} g5 {[%emt 0:06:30] [#]} 12. fxg5 $146 {[%emt 0:22:30]} ({Predecessor:} 12. e5 dxe5 13. fxg5 hxg5 14. Bxg5 Rg8 15. h4 Nb6 16. Rg1 Nfd5 17. Ne4 Bd7 18. Nbc5 {1-0 (35) Gruenfeld,Y (2449)-Grinberg,E (2201) Jerusalem 2014}) 12... hxg5 {[%emt 0:00:30]} 13. Bxg5 {[%emt 0:00:00]} Rg8 {[%emt 0:03:30]} (13... Bg7 $14) 14. h4 $16 {[%emt 0:02:00]} b5 {[%emt 0:19:30][%cal Bb7b5,Bb5b4,Bb4c3][%mdl 32]} 15. Bg2 {[%emt 0:15:30]} (15. Bxf6 $16 Nxf6 16. g5) 15... b4 $1 $11 {[%emt 0:11:30]} 16. e5 {[%emt 0:06:40] [#]} bxc3 $1 {[%emt 0:00:30]} 17. O-O-O {[%emt 0:04:56] Hoping for exd6.} (17. Bxa8 cxb2 18. exf6 bxa1=Q+ 19. Nxa1 Qc3+ 20. Kf2 Ne5 $19) 17... Nxe5 {[%emt 0:06:30]} 18. Bxf6 $2 {[%emt 0:02:16]} (18. Bxa8 $11 Bxg4 19. Qxa6 $1) 18... Bxg4 $19 {[%emt 0:04:30]} 19. Qe4 {[%emt 0:01:43]} Rc8 {[%emt 0:01:30]} (19... exf6 20. Qxa8+ Ke7 21. Kb1 $11) 20. Bxe5 {[%emt 0:00:46]} dxe5 {[%emt 0:03:30]} 21. Kb1 {[%emt 0:03:30]} (21. Rd5 {was the only defense.}) 21... Bxd1 {[%emt 0:05:21]} 22. Rxd1 {[%emt 0:00:02] White wants to mate with Qa4+.} Bh6 {[%emt 0:00:53] Strongly threatening ...e6.} (22... f5 $2 23. Qxf5 $1 Qb6 24. Qxc8+ $18) 23. Bh3 {[%emt 0:01:46]} (23. Bf1 $142) 23... Rd8 $4 {[%emt 0:01:03][%mdl 8192]} (23... e6 $19 {and all is fine.} 24. Bf1 f5 25. Qa4+ Ke7 26. Bxa6 Rcd8 27. Qb4+ Kf6) 24. Rxd8+ $18 {[%emt 0:00:04]} Qxd8 {[%emt 0:00:33]} 25. Qc6+ {[%emt 0:00:04]} Kf8 {[%emt 0:00:33]} 26. Qxh6+ {[%emt 0:00:03]} Rg7 {[%emt 0:01:11]} 27. Qh8+ {[%emt 0:00:30]} Rg8 {[%emt 0:00:30]} 28. Qh6+ {[%emt 0:00:30]} (28. Qxe5 Qd1+ 29. Nc1 Qxc1+ $3 {[%mdl 512]} 30. Kxc1 Rg1+) 28... Rg7 $1 {[%emt 0:00:00]} 29. Qh8+ $2 {[%emt 0:04:13] Dancing on a razor blade.} (29. bxc3 $18 Qd6 30. Qh5) 29... Rg8 $11 {[%emt 0:00:00]} 30. Qh6+ $40 {[%emt 0:00:00][%mdl 128] White has some attack.} (30. Qxe5 Qd1+ 31. Nc1 Qxc1+ $3 {[%mdl 512]} 32. Kxc1 Rg1+) 30... Ke8 $2 {[%emt 0:02:42]} (30... Rg7 $1 $11 {and Black has nothing to worry.}) 31. Qc6+ $18 {[%emt 0:00:18]} (31. bxc3 $6 Qd6 32. Qh5 a5 $16) (31. Qxa6 Rg1+ 32. Bf1 (32. Nc1 $2 Rxc1+ 33. Kxc1 Qd2+ 34. Kb1 Qe1#) 32... Qd1+ 33. Nc1 Kf8 34. Qh6+ Kg8 $17) 31... Kf8 {[%emt 0:00:00]} 32. Qh6+ {[%emt 0:00:19]} (32. Qxc3 Rg1+ 33. Nc1 Qd1 $11) 32... Ke8 {[%emt 0:00:17]} 33. Qc6+ {[%emt 0:00:00]} (33. Qxa6 Rg1+ 34. Bf1 (34. Nc1 $2 Rxc1+ 35. Kxc1 Qd2+ 36. Kb1 Qe1#) 34... Qd1+ 35. Nc1 Kf8 36. Qh6+ Kg8 $17) 33... Kf8 {[%emt 0:00:06] ( -> ...Qd1+)} 34. Qh6+ {[%emt 0:00:31]} ({Much weaker is} 34. Qxc3 $6 Rg1+ 35. Nc1 Qd1 $11) (34. bxc3 $16 {Threatens to win with Qh6+.} Qd6 35. Qa8+ Kg7 36. Qf3) 34... Rg7 $2 {[%emt 0:00:30]} (34... Ke8 $11) 35. Qh8+ {[%emt 0:00:00]} Rg8 {[%emt 0:05:03]} 36. Qh6+ {[%emt 0:00:04]} (36. Qxe5 Qd1+ 37. Nc1 {[#]} Qxc1+ $3 {[%mdl 512]} 38. Kxc1 Rg1+) 36... Ke8 {[%emt 0:00:30]} 37. Qc6+ {[%emt 0:00:00] Weighted Error Value: White=0.82/Black=0.50} ({Not} 37. Qxa6 Rg1+ 38. Bf1 (38. Nc1 $2 {is a self mate.} Rxc1+ 39. Kxc1 Qd2+ 40. Kb1 Qe1#) 38... Qd1+ 39. Nc1 Kf8 40. Qh6+ Kg8 $17) ({White has to play} 37. bxc3 $16 Qd6 38. Qe3) 1/2-1/2

[Event "5th Baskent University Open 2022"]
[Site "Ankara"]
[Date "2022.07.03"]
[Round "2.4"]
[White "Bicer, Atakan Mert"]
[Black "Unat, Can Haktan"]
[Result "0-1"]
[ECO "A15"]
[WhiteElo "2368"]
[BlackElo "2242"]
[Annotator "TA"]
[PlyCount "102"]
[EventDate "2022.07.02"]
[EventType "swiss"]
[EventCountry "TUR"]
[SourceTitle "playchess.com"]
[Source "ChessBase"]
[SourceQuality "1"]
[TimeControl "5400+30"]

{[%evp 9,102,29,33,35,50,34,43,37,25,50,47,33,50,10,7,0,37,-25,36,36,39,0,49,0,0,0,0,0,0,0,0,-8,0,-9,7,0,9,0,14,0,0,0,0,0,0,0,0,0,0,-5,23,26,30,17,21,25,42,31,52,-62,-55,-60,-79,-54,-54,-43,-8,-67,-68,-293,-284,-285,-288,-433,-454,-459,-441,-514,-504,-497,-498,-545,-547,-476,-413,-659,-660,-1039,-1029,-1062,-1081,-1050,-1044,-968,-950]} 1. c4 {[%emt 0:02:00]} Nf6 {[%emt 0:02:00]} 2. g3 {[%emt 0:00:30]} g6 {[%emt 0:01:30]} 3. Bg2 {[%emt 0:00:30]} d5 {[%emt 0:00:30]} 4. cxd5 {[%emt 0:00:30]} Nxd5 {[%emt 0:00:00]} 5. Qb3 {[%emt 0:01:30]} Nb6 {[%emt 0:06:00]} 6. Qc3 {[%emt 0:07:30] Inhibits Bg7. A15: English Opening: 1...Nf6.} Rg8 {[%emt 0:08:30]} 7. Nf3 {[%emt 0:01:30]} Bg7 {[%emt 0:01:30]} 8. Qc2 {[%emt 0:04:30] White is slightly better.} Nc6 {[%emt 0:02:30]} 9. d3 {[%emt 0:08:30]} Bg4 {[%emt 0:08:30]} 10. Nbd2 {[%emt 0:01:30] [#]} Qd7 $146 {[%emt 0:07:30]} ({Predecessor:} 10... h6 11. O-O Qd7 12. Nb3 O-O-O 13. Nc5 Qd6 14. Be3 Kb8 15. Rfc1 Bc8 16. a4 a5 {½-½ (50) Ferreira,J (2327)-Swinkels,R (2483) Torres Vedras 2011}) 11. h3 {[%emt 0:16:30]} Be6 {[%emt 0:02:30]} 12. Ne4 {[%emt 0:12:30]} Bd5 {[%emt 0:09:30]} (12... Nb4 $5 {[%cal Rb4c2]} 13. Qb1 Na6 $11) 13. Be3 {[%emt 0:10:30]} (13. O-O $14) 13... Bxe4 {[%emt 0:06:30]} (13... Nb4 $11 14. Qd2 Qa4) 14. dxe4 $14 {[%emt 0:01:30]} Nb4 {[%emt 0:00:30]} 15. Qc5 {[%emt 0:01:30]} Qd6 {[%emt 0:01:30]} (15... Bxb2 $11 16. Rd1 Qc6 $1) 16. O-O {[%emt 0:03:30]} (16. Qc1 $1 $14 {might be stronger.} Nc6 17. e5) 16... Qxc5 $1 $11 {[%emt 0:02:30]} 17. Bxc5 {[%emt 0:00:30]} Na6 {[%emt 0:00:00]} 18. Bd4 {[%emt 0:04:30]} Bxd4 {[%emt 0:01:00]} 19. Nxd4 {[%emt 0:00:30]} O-O-O {[%emt 0:00:00]} 20. Nb3 {[%emt 0:05:51]} e5 {[%emt 0:09:00]} 21. Rac1 {[%emt 0:03:29]} Nb4 {[%emt 0:01:30]} 22. Rc5 {[%emt 0:02:02]} Rge8 {[%emt 0:01:30]} 23. a3 {[%emt 0:01:00]} Na6 {[%emt 0:01:30]} 24. Rc2 {[%emt 0:00:40]} c6 {[%emt 0:01:30]} 25. f4 {[%emt 0:01:15]} Nd7 {[%emt 0:00:30]} 26. Na5 {[%emt 0:01:28]} Nc7 {[%emt 0:02:30]} 27. Nc4 {[%emt 0:00:41]} Re7 {[%emt 0:00:30]} 28. h4 {[%emt 0:00:53]} Ne6 {[%emt 0:04:38]} 29. e3 {[%emt 0:00:43]} Kc7 {[%emt 0:02:14]} 30. b4 {[%emt 0:00:30]} exf4 {[%emt 0:01:13]} 31. gxf4 {[%emt 0:01:06]} Nb6 {[%emt 0:01:57]} 32. Nb2 {[%emt 0:02:15] Against Rd3} Kb8 {[%emt 0:00:49]} 33. a4 {[%emt 0:00:46]} Nc7 {[%emt 0:02:04][%cal Be6c7,Bc7a6,Ba6b4,Bb4a2,Ba2c1][%mdl 32]} 34. Kf2 {[%emt 0:00:37]} (34. a5 $14 Nc8 35. Nc4) 34... Na6 $1 $15 {[%emt 0:00:56]} 35. b5 {[%emt 0:01:02]} Nb4 {[%emt 0:00:33]} 36. Re2 {[%emt 0:00:38]} cxb5 {[%emt 0:00:30]} 37. axb5 {[%emt 0:00:30]} Na2 {[%emt 0:00:00] next ...Nc3 is good for Black. Pair of Knights!} 38. Rd1 {[%emt 0:01:07]} (38. Nd1 $11 Nb4 39. Kg3) 38... Rc8 $1 $36 {[%emt 0:00:37][%mdl 2048] Threatens to win with ...Nc3. Black is pushing.} 39. Rd4 $2 {[%emt 0:01:31] [#] This move loses the game for White.} (39. Bh3 $15 Rce8 40. Rc2) 39... Nc1 $1 $19 {[%emt 0:01:32]} 40. Red2 {[%emt 0:01:50]} Nb3 $1 {[%emt 0:00:30][%csl LRd2,LRd4]} 41. Re2 {[%emt 0:00:00]} (41. e5 {was called for.}) 41... Nxd4 {[%emt 0:01:04]} 42. exd4 {[%emt 0:00:00] [#]} Nd5 $1 {[%emt 0:00:11][%mdl 512]} 43. Kg3 {[%emt 0:00:43]} (43. Rd2 Nxf4) 43... Nc3 {[%emt 0:00:50][%csl LRb5,LRe2] Prevents Nd1.} 44. Re3 {[%emt 0:01:14]} Nxb5 {[%emt 0:00:30]} 45. d5 {[%emt 0:00:00]} Nd6 {[%emt 0:01:07] Hoping for ...Nf5+.} 46. Re2 {[%emt 0:00:50]} Nf5+ {[%emt 0:01:10]} 47. Kg4 {[%emt 0:00:37]} (47. Kf2 $142) 47... f6 {[%emt 0:01:31][%cal Bf7f6,Bf6f5][%mdl 32] And now ...Rc3 would win. Black is clearly winning.} 48. h5 {[%emt 0:00:22]} Rc3 {[%emt 0:00:14][%csl Gf5][%cal Rc3g3]} 49. hxg6 {[%emt 0:00:30]} hxg6 {[%emt 0:00:00][%csl Gf5][%cal Rc3g3]} 50. Bf3 {[%emt 0:00:34]} Nd4 {[%emt 0:01:26][%csl LRe2,LRf3]} 51. Rf2 {[%emt 0:00:36]} f5+ {[%emt 0:00:21] Weighted Error Value: White=0.45/Black=0.08 (flawless)} 0-1